Cogmind - Beta 11 @@@ ROGUE MODE // 2022.04.03 @ 12:57:18 Player: Finestep Result: Destroyed by G-34 Mercenary with Small Laser Performance ------------- Evolutions (0) 0 Regions Visited (2) 400 Robots Destroyed (37) 185 Value Destroyed (680) 680 Prototype IDs (2) 40 Alien Tech Used (0) 0 Bonus (0) 0 TOTAL SCORE: 1305 Bonus ------- None Cogmind --------- Core Integrity 0/250 Matter 300/300 Energy 121/125 System Corruption 0% Temperature Cool (8) Movement Treading (240) Ox1 Location -10/Mines Parts ------- > --- POWER (1) -------- Light Ion Engine > --- PROPULSION (2) --- Light Treads Light Treads > --- UTILITY (2) ------ Improved Heat Sink High-capacity Storage Unit > --- WEAPON (2) ------- Particle Cannon Particle Cannon > --- INVENTORY (20) --- Ion Engine Light Nuclear Core Light Treads Wheel Armored Wheel Armored Wheel Armored Wheel Armored Wheel Improved Heat Sink Large Storage Unit High-capacity Matter Pod (200) Seismic Detector Targeting Computer Weapon Shielding Light Armor Plating Particle Cannon Particle Cannon Light Assault Rifle Grenade Launcher Mining Laser Peak State ------------ > --- POWER ------------ Light Ion Engine > --- PROPULSION ------- Armored Wheel Armored Wheel > --- UTILITY ---------- Improved Heat Sink High-capacity Storage Unit > --- WEAPON ----------- Particle Cannon Particle Cannon > --- INVENTORY -------- Ion Engine Light Nuclear Core Light Treads Light Treads Light Treads Light Treads Wheel Armored Wheel Armored Wheel Large Storage Unit High-capacity Matter Pod Seismic Detector Targeting Computer Weapon Shielding Light Armor Plating Particle Cannon Particle Cannon Light Assault Rifle Grenade Launcher Mining Laser [Rating: 15] Favorites ----------- Power Light Ion Engine Engine Light Ion Engine Propulsion Aluminum Leg Treads Light Treads Leg Aluminum Leg Wheel Armored Wheel Utility Seismic Detector Device Seismic Detector Storage High-capacity Storage Unit Weapon Particle Cannon Energy Cannon Particle Cannon Ballistic Gun Light Assault Rifle Launcher Grenade Launcher Build | -11 -10 -10 ------- Run | Scr Mat Min Slots Evolved . | . . . Power . | . . . Propulsion . | . . . Utility . | . . . Weapon . | . . . Parts Attached 26 | 7 14 5 Power 2 | 1 1 . Engine 2 | 1 1 . Core . | . . . Reactor . | . . . Propulsion 8 | 2 4 2 Treads 2 | . . 2 Leg 4 | 2 2 . Wheel 2 | . 2 . Hover . | . . . Flight . | . . . Utility 6 | 2 3 1 Device 2 | 1 . 1 Storage 4 | 1 3 . Processor . | . . . Hackware . | . . . Protection . | . . . Artifact . | . . . Weapon 10 | 2 6 2 Energy Gun . | . . . Energy Cannon 6 | . 5 1 Ballistic Gun 2 | 2 . . Ballistic Cannon . | . . . Launcher 2 | . 1 1 Special Weapon . | . . . Impact Weapon . | . . . Slashing Weapon . | . . . Piercing Weapon . | . . . Special Melee Weapon . | . . . Unidentified Prototypes . | . . . Parts Lost 1 | . 1 . Power 1 | . 1 . Propulsion . | . . . Utility . | . . . Weapon . | . . . Highest Loss Streak 1 | . 1 . To Critical Strikes . | . . . Average Slot Usage (%) 99 | . 99 100 Engine 13 | . 13 14 Treads 4 | . . 16 Leg 16 | . 23 . Wheel 6 | . 4 11 Device 14 | . 14 14 Storage 14 | . 14 14 Energy Cannon 20 | . 17 28 Ballistic Gun 7 | . 10 . Naked Turns . | . . . Heaviest Build 52 | 11 52 52 Greatest Support 40 | 20 24 40 Greatest Overweight (x) 2 | 1 2 2 Average Overweight (x) . | . . 1 Largest Inventory Capacity 20 | 8 20 20 Average Capacity 13 | 7 11 20 Most Carried 20 | 5 20 20 Average Carried 12 | 3 10 20 Final Capacity 20 | 8 20 20 Final Carried 20 | 5 20 20 Class Distribution -------------------- 59% | Mutant 40% | Scavenger-Mutant Dominant Class ---------------- Scavenger-Mutant | -10/Materials Mutant | -10/Mines Resources | -11 -10 -10 ----------- Run | Scr Mat Min Matter Collected 799 | 288 258 253 Remotely . | . . . Salvage Created 1085 | 143 525 417 Parts 77 | 9 36 32 Haulers Intercepted 2 | . 2 . Recyclers Shooed . | . . . Parts Field Recycled . | . . . Retrieved Matter . | . . . Parts Self-Destructed . | . . . Prevented . | . . . Kills | -11 -10 -10 ------- Run | Scr Mat Min Combat Hostiles Destroyed 25 | . 11 14 Guns 11 | . 11 . Cannons 10 | . . 10 AOE 3 | . . 3 Classes Destroyed 8 | 2 6 . Worker 1 | . 1 . Builder 1 | . 1 . Tunneler 4 | 2 . 2 Hauler 2 | . 2 . Recycler 2 | 1 1 . Watcher 2 | . 2 . Swarmer 12 | . 6 6 Grunt 13 | . 5 8 Best Kill Streak 4 | 3 3 4 Combat Bots Only 3 | . 3 3 Max Kills in Single Turn 2 | 1 1 2 Gunslinging . | . . . Exploded 2 | . . 2 Melee . | . . . Uniques/NPCs Destroyed . | . . . Combat | -11 -10 -10 -------- Run | Scr Mat Min Damage Taken 842 | . 506 336 Core 250 | . 139 111 Absorbed by Shields . | . . . Core Remaining (%) 100 | 100 . . Volleys Fired 103 | 9 61 33 Largest 2 | 2 2 2 Hottest 136 | 40 136 136 Shots Fired 203 | 18 121 64 Gun 114 | 18 96 . Cannon 86 | . 24 62 Launcher 3 | . 1 2 Special . | . . . Kinetic 114 | 18 96 . Thermal 86 | . 24 62 Explosive 3 | . 1 2 Electromagnetic . | . . . Robot Hit Streak 13 | 5 13 7 Robot Miss Streak 5 | 4 5 3 Penetration Max . | . . . Secondary Targets 1 | . 1 . Max Gunslinging Chain 1 | . 1 . Shots Hit Robots 121 | 9 77 35 Core Hits 49 | 4 29 16 Critical Kills . | . . . Critical Parts Destroyed . | . . . Critical Strikes . | . . . Melee Attacks . | . . . Impact . | . . . Slashing . | . . . Piercing . | . . . Sneak Attacks . | . . . Combat Hostiles . | . . . Follow-up Attacks . | . . . Damage Inflicted 1656 | 78 742 836 Guns 608 | 78 530 . Cannons 947 | . 212 735 Explosions 101 | . . 101 Melee . | . . . Ramming . | . . . Kinetic 608 | 78 530 . Thermal 947 | . 212 735 Explosive 101 | . . 101 Electromagnetic . | . . . Impact . | . . . Slashing . | . . . Piercing . | . . . Highest Corruption . | . . . Average Corruption . | . . . Corruption Purged . | . . . Corruption Blocked . | . . . Overload Shots . | . . . Overflow Damage . | . . . Projectiles . | . . . Explosions . | . . . Melee . | . . . Knockbacks . | . . . Impact . | . . . Kinetic . | . . . Secondary . | . . . Self-Inflicted Damage . | . . . Shots . | . . . Rammed . | . . . Targets Rammed . | . . . Kicked . | . . . Crushed . | . . . Highest Temperature 246 | . 120 246 Average Temperature 63 | . 31 89 Received Heat Transfer 297 | . 150 147 Effects 4 | . . 4 Energy Bleed 2 | . . 2 Interference 2 | . . 2 Siege Activations . | . . . Robots Corrupted . | . . . Combat Hostiles . | . . . Parts Fried . | . . . Impact Corruptions . | . . . Robots Melted 1 | . . 1 Combat Hostiles 1 | . . 1 Parts Melted 2 | . 1 1 Heat Transferred 1776 | . 444 1332 Parts Sabotaged . | . . . Parts Stolen . | . . . Parts Stripped . | . . . Power Chain Reactions . | . . . Missiles Intercepted . | . . . Alert | -11 -10 -10 ------- Run | Scr Mat Min Peak Influence 301 | 15 301 289 Initial 12 | . 9 12 Average 134 | 4 128 172 Maximum Alert Level 1 | . 1 1 Low Security (%) 76 | 100 77 67 Level 1 23 | . 22 32 Level 2 . | . . . Level 3 . | . . . Level 4 . | . . . Level 5 . | . . . High Security . | . . . Max Security . | . . . Squads Dispatched 2 | . 2 . Investigation 2 | . 2 . Extermination . | . . . Reinforcement . | . . . Assault . | . . . Garrison . | . . . Intercept . | . . . Searches Triggered . | . . . Construction Impeded . | . . . Haulers Reinforced . | . . . Active Scanning Responses . | . . . Cargo Convoy Interrupts . | . . . Stealth | -11 -10 -10 --------- Run | Scr Mat Min Distress Signals 1 | . 1 . Communications Jammed . | . . . Distress Signals . | . . . Times Spotted 30 | . 15 15 Peak Tracking Total 4 | . 4 3 Tactical Retreats . | . . . Traps | -11 -10 -10 ------- Run | Scr Mat Min Traps Triggered . | . . . Indirectly . | . . . Trap Hack Attempts . | . . . Triggered . | . . . Disarmed . | . . . Reprogrammed . | . . . Reused . | . . . Traps Extracted . | . . . Installed . | . . . Triggered . | . . . Machines | -11 -10 -10 ---------- Run | Scr Mat Min Machines Disabled 1 | . . 1 Max in Single Turn 1 | . . 1 Machines Sabotaged . | . . . Garrisons Compromised . | . . . Overloaded Fab Kills . | . . . Hacking | -11 -10 -10 --------- Run | Scr Mat Min Machines Accessed 9 | . 9 . Terminals 7 | . 7 . Fabricators . | . . . Repair Stations . | . . . Recycling Units 2 | . 2 . Scanalyzers . | . . . Garrison Access . | . . . Total Hacks 28 | . 28 . Successful 17 | . 17 . Failed 11 | . 11 . Catastrophic 2 | . 2 . Database Lockouts . | . . . Manual 18 | . 18 . Terminals 23 | . 23 . Fabricators . | . . . Repair Stations . | . . . Recycling Units 5 | . 5 . Scanalyzers . | . . . Garrison Access . | . . . Terminal Hacks 9 | . 9 . Part Schematic 2 | . 2 . Robot Schematic 2 | . 2 . Prototype ID Bank 1 | . 1 . Branch Access Points 1 | . 1 . Locate Traps 1 | . 1 . Hauler Manifests 1 | . 1 . Registered Components 1 | . 1 . Fabricator Hacks . | . . . Repair Station Hacks . | . . . Recycling Unit Hacks 1 | . 1 . Retrieve Components 1 | . 1 . Scanalyzer . | . . . Garrison Access Hacks . | . . . Unauthorized Hacks 7 | . 7 . Terminals 5 | . 5 . Botnet 4 | . 4 . Operators 1 | . 1 . Fabricators . | . . . Repair Stations . | . . . Recycling Units 2 | . 2 . Tunnel 2 | . 2 . Scanalyzers . | . . . Garrison Access . | . . . Data Cores Recovered . | . . . Used . | . . . Hacking Detections 8 | . 8 . Full Trace Events 1 | . 1 . Feedback Events . | . . . Feedback Blocked . | . . . Robot Schematics Acquired 2 | . 2 . Robots Built . | . . . Authchips . | . . . Time . | . . . Total Robot Build Rating . | . . . Part Schematics Acquired 2 | . 2 . Parts Built . | . . . Authchips . | . . . Time . | . . . Total Part Build Rating . | . . . Parts Repaired . | . . . Time . | . . . Parts Recycled . | . . . Recycled Matter . | . . . Retrieved Matter . | . . . Retrieved Components . | . . . Parts Scanalyzed . | . . . Part Schematics Acquired . | . . . Parts Damaged . | . . . Bothacking | -11 -10 -10 ------------ Run | Scr Mat Min Used RIF Installer . | . . . Robots Hacked . | . . . Non-combat . | . . . Combat . | . . . Robot Hacks Applied . | . . . Relay Couplers Released . | . . . Fabnet Peak Effective % . | . . . Robots Rewired . | . . . Allies Hacked . | . . . Hacks Repelled . | . . . Allies | -11 -10 -10 -------- Run | Scr Mat Min Total Allies . | . . . Largest Group . | . . . Highest-Rated Group . | . . . Highest-Rated Ally . | . . . Total Orders . | . . . Ally Attacks . | . . . Total Damage . | . . . Kills . | . . . Allies Corrupted . | . . . Allies Melted . | . . . Intel | -11 -10 -10 ------- Run | Scr Mat Min Robot Analysis Total . | . . . Derelict Logs Recovered 2 | . . 2 Drone Launches . | . . . Drone Recoveries . | . . . Exploration | -11 -10 -10 ------------- Run | Scr Mat Min Turns Passed 2000 | 98 1356 546 Spaces Moved 1188 | 53 887 248 Core 8 | 8 . . Treads 110 | . . 110 Legs 744 | 45 699 . Wheels 326 | . 188 138 Hover . | . . . Flight . | . . . Fastest Speed 50 | 50 105 120 Average Speed 135 | 113 126 173 Slowest Speed 240 | 120 190 240 Overloaded Moves . | . . . Propulsion Burnouts . | . . . Robots Hopped . | . . . Cave-ins Triggered . | . . . Exploration Rate (%) 52 | 4 91 62 Regions Visited 2 Branch Regions 1 Pre-discovered Areas 3 | . 2 1 Known Exits Taken 1 | . 1 . Unknown Exits Taken 1 | 1 . . Scrap Searched . | . . . Spaces Dug . | . . . Terrain Destroyed 24 | . 12 12 Melee . | . . . Projectile . | . . . AOE 24 | . 12 12 Terrain Rammed . | . . . Walls Destroyed . | . . . Machines Disabled . | . . . Actions | -11 -10 -10 --------- Run | Scr Mat Min Total 1397 | 73 1024 300 Wait 35 | . 23 12 Move 1186 | 52 886 248 Hop . | . . . Pick Up 29 | 5 23 1 Fast Attach 11 | 7 4 . Attach 1 | . 1 . Detach 2 | . 2 . Swap 14 | . 9 5 Drop 16 | . 15 1 Fire 103 | 9 61 33 Melee . | . . . Ram . | . . . Kick . | . . . Crush . | . . . Escape Stasis . | . . . Rewire . | . . . Trap . | . . . Miscellaneous . | . . . Route ------- -11/Scrapyard -10/Materials (discovered 3 exits: [*Mat x2] / *Min) -10/Mines History --------- Turn | Location | Event 16 | -11/Scrapyard | Discovered new exit (range 16) 99 | -11/Scrapyard | Entered Materials 222 | -10/Materials | Discovered new exit (range 11) 328 | -10/Materials | Build established: Mutant 410 | -10/Materials | Discovered new exit (range 4) 542 | -10/Materials | Core integrity fell below 50% 687 | -10/Materials | Identified exit to Mines 696 | -10/Materials | Build established: Scavenger-Mutant 1455 | -10/Materials | Entered Mines 1490 | -10/Mines | Learned Materials terminal intel 1518 | -10/Mines | Build established: Mutant 1577 | -10/Mines | Excavation squad dispatched 1577 | -10/Mines | A large section of the Mines collapsed 1675 | -10/Mines | Core integrity fell below 20% 1827 | -10/Mines | Excavation squad dispatched 2001 | -10/Mines | Destroyed by G-34 Mercenary with Small Laser Last Messages --------------- 01609_ Acquired Imp. Heat Sink. 01614_ Acquired 55 matter. 01676_ S-10 Pest destroyed. 01688_ Acquired 16 matter. 01690_ K-01 Serf collects debris. 01690_ Acquired 15 matter. 01695_ Acquired 10 matter. 01698_ Extracted 126 matter. 01700_ K-01 Serf collects debris. 01753_ G-34 Mercenary destroyed. 01756_ Heat Sink melted. 01756_ G-34 Mercenary destroyed. 01759_ T-07 Excavator destroyed. 01768_ K-01 Serf collects debris. 01827_ ALERT: Derelict activity in mines confirmed. Dispatching additional escorted excavation squad. 01828_ K-01 Serf collects debris. 01900_ G-34 Mercenary destroyed. 01912_ T-07 Excavator destroyed. 01939_ G-34 Mercenary critical meltdown. Map ----- +----------------------------------------------------+ | ##??????????# #??????????????????###?? | | ##??###????# #????###??????????# #?? | | #?## ###?# #???## #?????????# #?? | | #?# ### #??## ####?##### #?? | | #?# ####?## # ### #??? | | #??# #"##%### ## ##% #??? | | #????# #"%|*%![ |###[!= #??? | | ?????## #%!*== ==%%%%* #??? | | ####### ###%** %=!##*!% #??? | | ###### ##== ####### # #??? | | #?## ## ## ##?????# ##?????? | | ### #??##=##### ####??????# #???#??? | | ??# #??###=##?# #????###### ## #??? | | ??# #??##*##??# #????# #??? | | ??# #??#="#???# #????# #??? | | ??# ####"##???# #???## #########??? | | ??# ##???# #???# """" #????? | | ??# #???# #???# """" #????? | | ??##########???# #???# """" #????? | | ???????????????# #???# #????? | | ?????????#####?# ##??# #????? | | ????????## ### ##?# #????? | | ???????## ########## ##????? | | ??????## #??###### #?????? | | ??????# #??# #?????? | | ?????## ##??#@######?????? | | ?????# ### ##???# #??????????? | | ###??# ##?#### ##????# #??????????? | | #??# #?????####?????# #??????????? | | #??# #?????????????? ??????????? | | # #??## #?????????????? ??????????? | | #*#???#!=#??####???????? ""??????????? | | #=#####==#### ##??????? ""??????????? | | = =%%=[|## ##??????g""??????????? | | ########% #?????? ??????????? | | ???????# #????? ????????????? | | ???????# ##????? ????????????? | | ???????# ##????? ????????????? | | ???????# ##???? ????????????? | | ???????## #????#?????????????? | | ????????#### #??????????????????? | | ???????????## #??????????????????? | | ????????????## #??????????????????? | | ?????????????## ##??????????????????? | | ??????????????####???????????????????? | | ?????????????????????????????????????? | | ?????????????????????????????????????? | | ?????????????????????????????????????? | | ?????????????????????????????????????? | | | +----------------------------------------------------+ Best States ------------- Heat Dissipation 39 Energy Generation 10 Energy Capacity 125 Matter Stores 300 Matter Capacity 300 Sight Range 16 Terrain Scan Density 10 Evasion (%) 55 Recoil Reduction 2 Item Schematics ----------------- Hcp. Storage Unit | -10/Materials | Hacked Huge Storage Unit | -10/Materials | Hacked Robot Schematics ------------------ O-16 Technician | -10/Materials | Hacked M-13 Machinist | -10/Materials | Hacked Fabricated ------------ Nothing Alien Tech Used ----------------- None Achievements -------------- None Challenges ------------ None Game ------ Seed TerrainCouplerShredder Manual? 0 Play Time 00:12:36 Cumulative 576.5 hours Start 2022.04.03 @ 12:46:35 End 2022.04.03 @ 12:57:18 Sessions 1 Manual Loads 0 Difficulty Rogue Special Mode None Game No. 363 Rogue 363 Adventurer 0 Explorer 0 Win Type - Total 7 Types 5/0/1/0/1/0/0/0/0 Lore% 85 Gallery% 86 Achievement% 74 Wizard Run 0 Options --------- ASCII 0 Keyboard 0 Movement Mouse Keybinds 1 Fullscreen 2 Font 24/Smallcaps Map View 68x50 Tactical HUD 1 Map Filters NONE Filters NONE Steam 1 RUN: 1c4d7a0c-c82a-46cb-8639-728d15f634df